[Event "GER-ch Women 2020"]
[Site "Magdeburg"]
[Date "2020.08.20"]
[Round "7.7"]
[White "Stowicek, Yara Mathilda"]
[Black "Heutling, Elina"]
[Result "1/2-1/2"]
[ECO "C55"]
[WhiteElo "1674"]
[BlackElo "1833"]
[Annotator "NA RC"]
[PlyCount "100"]
[EventDate "2020.08.16"]
[EventType "swiss"]
[EventCountry "GER"]
[SourceTitle "playchess.com"]
[Source "ChessBase"]
[SourceQuality "1"]
[TimeControl "40/5400+30:1800+30"]

1. e4 {[%emt 0:00:00]} e5 {[%emt 0:00:00]} 2. Bc4 {[%emt 0:00:00]} Nf6 {[%emt 0:00:00]} 3. Nf3 {[%emt 0:00:05]} Nc6 {[%emt 0:00:09]} 4. d3 {[%emt 0:00:27]} d5 {[%emt 0:01:04]} 5. exd5 {[%emt 0:01:25]} Nxd5 {[%emt 0:02:48]} 6. O-O {[%emt 0:00:58]} Bg4 {[%emt 0:00:14]} 7. Re1 {[%emt 0:02:32]} Be7 {[%emt 0:01:17]} 8. h3 {[%emt 0:01:24]} Bh5 {[%emt 0:00:37]} 9. g4 {[%emt 0:02:21]} Bg6 {[%emt 0:00:05]} 10. Nxe5 {[%emt 0:01:07]} Nxe5 {[%emt 0:00:07]} 11. Rxe5 {[%emt 0:00:25]} Nb6 {[%emt 0:00:17]} 12. Bb3 {[%emt 0:01:09]} O-O {[%emt 0:00:21]} 13. Nc3 {[%emt 0:03:32] C24: Bishop's Opening: 2...Nf6.} Bd6 {[%emt 0:08:45]} 14. Bg5 {[%emt 0:06:11]} Qd7 {[%emt 0:00:06]} 15. Re1 {[%emt 0:02:50] [#]} h6 $146 {[%emt 0:10:22]} ({Predecessor:} 15... Kh8 16. Bd2 f5 17. g5 f4 18. Qf3 Qd8 19. h4 Nd7 20. d4 h6 21. Ne4 Bf7 22. Bxf7 Rxf7 23. Nxd6 cxd6 {1-0 (35) Bayrak,K (1829)-Ilbay,H Antalya 2013}) 16. Be3 {[%emt 0:03:01]} Kh8 {[%emt 0:10:32]} 17. Ne4 {[%emt 0:10:10]} Be7 {[%emt 0:01:07]} 18. Ng3 {[%emt 0:05:01]} Bh4 {[%emt 0:06:28]} 19. Qf3 {[%emt 0:03:44]} Bxg3 {[%emt 0:09:32]} 20. Qxg3 {[%emt 0:00:53]} Nd5 {[%emt 0:07:05]} 21. Bxh6 {[%emt 0:03:35]} c6 {[%emt 0:06:54]} 22. Be3 {[%emt 0:02:28]} Rfe8 {[%emt 0:02:20]} 23. Re2 {[%emt 0:04:54]} Re7 {[%emt 0:06:22]} 24. Rae1 {[%emt 0:00:21]} Rae8 {[%emt 0:00:15]} 25. Qf3 {[%emt 0:00:35]} Nxe3 {[%emt 0:03:01]} 26. Rxe3 {[%emt 0:00:39]} a6 {[%emt 0:01:17]} 27. g5 {[%emt 0:04:37]} Rxe3 {[%emt 0:01:24]} 28. Rxe3 {[%emt 0:00:47]} Kg8 {[%emt 0:00:17]} 29. h4 {[%emt 0:01:02]} Rxe3 {[%emt 0:00:49]} 30. fxe3 {[%emt 0:00:25]} Bf5 {[%emt 0:00:27]} 31. Qf4 {[%emt 0:01:40]} Bg6 {[%emt 0:01:05]} 32. Kg2 {[%emt 0:01:05]} Bh5 {[%emt 0:02:13]} 33. Qg3 {[%emt 0:03:44]} Kh7 {[%emt 0:01:22]} 34. e4 {[%emt 0:01:26]} Qe7 {[%emt 0:02:39]} 35. Qf4 {[%emt 0:01:03]} Kg8 {[%emt 0:01:39]} 36. Qf5 {[%emt 0:02:39]} Kh8 {[%emt 0:00:51]} 37. e5 {[%emt 0:04:13]} Bg6 {[%emt 0:01:57]} 38. Qf4 {[%emt 0:03:49]} Qd7 {[%emt 0:00:59]} 39. Kg3 {[%emt 0:02:51]} Bh5 {[%emt 0:01:01]} 40. d4 {[%emt 0:01:26]} Kg8 {[%emt 0:01:10]} 41. e6 {[%emt 0:33:01]} fxe6 {[%emt 0:30:24]} 42. Qe5 {[%emt 0:05:56]} Kf7 {[%emt 0:01:01]} 43. c4 {[%emt 0:05:22]} b6 {[%emt 0:05:55]} 44. d5 $2 {[%emt 0:02:58]} ({White should play} 44. Bc2 $18) 44... exd5 {[%emt 0:00:50]} 45. Qd4 $14 {[%emt 0:00:00]} Qc7+ {[%emt 0:00:00]} 46. Kg2 {[%emt 0:00:00]} dxc4 {[%emt 0:00:00]} 47. Qxc4+ {[%emt 0:00:00]} Ke7 {[%emt 0:00:00]} 48. Qe6+ {[%emt 0:00:00]} Kd8 {[%emt 0:00:00]} 49. Qf5 {[%emt 0:00:00]} Qd6 {[%emt 0:00:00]} 50. Qf2 {[%emt 0:00:00]} c5 {[%emt 0:00:00]} 1/2-1/2

[Event "GER-ch Women 2020"]
[Site "Magdeburg"]
[Date "2020.08.20"]
[Round "7.8"]
[White "Rogozenco, Teodora"]
[Black "Reitz, Theresa"]
[Result "1-0"]
[ECO "D80"]
[WhiteElo "1979"]
[BlackElo "1942"]
[Annotator "ChessBase"]
[PlyCount "49"]
[EventDate "2020.08.16"]
[EventType "swiss"]
[EventCountry "GER"]
[SourceTitle "playchess.com"]
[Source "ChessBase"]
[SourceQuality "1"]
[TimeControl "40/5400+30:1800+30"]

1. d4 {[%emt 0:00:00]} Nf6 {[%emt 0:00:00]} 2. c4 {[%emt 0:00:00]} g6 {[%emt 0:00:00]} 3. Nc3 {[%emt 0:00:25]} d5 {[%emt 0:00:15]} 4. Bg5 {[%emt 0:00:11]} Ne4 {[%emt 0:03:49]} 5. Bh4 {[%emt 0:00:32]} Nxc3 {[%emt 0:01:05]} 6. bxc3 {[%emt 0:00:14]} Bg7 {[%emt 0:00:38]} 7. e3 {[%emt 0:01:18]} c6 {[%emt 0:07:17]} 8. Nf3 {[%emt 0:04:16]} Nd7 {[%emt 0:09:25]} 9. cxd5 {[%emt 0:12:55]} cxd5 {[%emt 0:00:10]} 10. Qb3 {[%emt 0:02:02]} Nb6 {[%emt 0:11:13]} 11. Bb5+ {[%emt 0:01:01]} Bd7 {[%emt 0:00:49]} 12. Ne5 {[%emt 0:00:25]} Bxe5 {[%emt 0:02:09]} 13. dxe5 {[%emt 0:00:17]} Bxb5 {[%emt 0:01:15]} 14. Qxb5+ {[%emt 0:00:09]} Qd7 {[%emt 0:00:15]} 15. Qb4 {[%emt 0:00:43]} Rc8 {[%emt 0:02:26]} 16. Qf4 {[%emt 0:19:33]} Qb5 {[%emt 0:09:44]} 17. Bxe7 {[%emt 0:01:33]} Qb2 {[%emt 0:05:20]} 18. O-O {[%emt 0:00:32]} Kxe7 {[%emt 0:03:09]} 19. Qf6+ {[%emt 0:00:14]} Kd7 {[%emt 0:00:27]} 20. Qxf7+ {[%emt 0:00:19]} Kd8 {[%emt 0:03:53]} 21. e4 {[%emt 0:10:59]} Qxc3 {[%emt 0:02:55]} 22. Qf6+ {[%emt 0:01:15]} Kd7 {[%emt 0:00:18]} 23. exd5 {[%emt 0:01:23]} Rhf8 {[%emt 0:02:09]} 24. Qg7+ {[%emt 0:01:35]} Ke8 {[%emt 0:00:27]} 25. d6 {[%emt 0:00:17]} 1-0

[Event "GER-ch Women 2020"]
[Site "Magdeburg"]
[Date "2020.08.20"]
[Round "7.9"]
[White "Schumann, Rabea"]
[Black "Brunner, Sophia"]
[Result "1/2-1/2"]
[ECO "A20"]
[WhiteElo "1871"]
[BlackElo "1881"]
[Annotator "NA RC"]
[PlyCount "124"]
[EventDate "2020.08.16"]
[EventType "swiss"]
[EventCountry "GER"]
[SourceTitle "playchess.com"]
[Source "ChessBase"]
[SourceQuality "1"]
[TimeControl "40/5400+30:1800+30"]

{[%evp 13,124,16,32767,25,32767,32767,32767,14,14,32767,32767,32767,32767,51,32767,32767,32767,32767,32767,32767,32767,32767,-45,-35,32767,32767,32767,32767,32767,32767,32767,32767,32767,32767,32767,32767,32767,7,32767,32767,118,32767,32767,32767,32767,32767,32767,32767,32767,0,32767,32767,0,-210,0,-115,-110,-97,-85,-110,-85,-86,-77,-116,-97,-97,-8,-359,-407,-356,-105,32767,-100,32767,-111,-138,32767,-187,-164,32767,32767,32767,32767,32767,-88,32767,32767,32767,32767,32767,32767,-66,32767,-39,-27,0,0,0,0,0,0,0,0,-14,-16,0,-23,-13,0,0,0,0,0]} 1. c4 {[%emt 0:00:00]} e5 {[%emt 0:04:25]} 2. g3 {[%emt 0:00:00]} Nc6 {[%emt 0:00:23]} 3. Bg2 {[%emt 0:00:02]} d6 {[%emt 0:01:28]} 4. Nc3 {[%emt 0:00:16]} Nge7 {[%emt 0:03:28]} 5. e3 {[%emt 0:01:31]} Be6 {[%emt 0:06:58]} 6. Nd5 {[%emt 0:04:33] A25: English Opening vs King's Indian with ...Nc6 but without early d3.} Qd7 {[%emt 0:02:54]} 7. a3 {[%emt 0:10:19] [#]} f6 $146 {[%emt 0:02:22]} ({Predecessor:} 7... Nd8 8. d4 c6 9. Nxe7 Bxe7 10. d5 cxd5 11. cxd5 Bg4 12. Qb3 f5 13. f3 Bh5 {1-0 (38) Valsecchi,A (2425)-Gomez Dieguez,D (2081) Bergamo 2012}) 8. Ne2 {[%emt 0:02:58]} Nd8 {[%emt 0:02:58]} 9. d4 {[%emt 0:06:21]} c6 {[%emt 0:10:42]} 10. Nxe7 {[%emt 0:00:43]} Bxe7 {[%emt 0:00:13]} 11. d5 {[%emt 0:01:02]} Bg4 {[%emt 0:03:02]} 12. O-O {[%emt 0:08:00]} c5 {[%emt 0:07:08]} 13. Qd3 {[%emt 0:06:50]} Nf7 {[%emt 0:06:40]} 14. f4 {[%emt 0:05:15]} O-O {[%emt 0:07:27]} 15. Nc3 {[%emt 0:11:43]} f5 {[%emt 0:09:12]} 16. e4 {[%emt 0:04:16]} exf4 {[%emt 0:04:09]} 17. gxf4 {[%emt 0:01:47]} fxe4 {[%emt 0:02:11]} 18. Bxe4 {[%emt 0:00:50]} g6 {[%emt 0:01:52]} 19. Be3 {[%emt 0:07:18]} Bf5 {[%emt 0:09:29]} 20. Bxf5 {[%emt 0:02:30]} Qxf5 {[%emt 0:00:04]} 21. Qxf5 {[%emt 0:09:15]} gxf5 {[%emt 0:00:06]} 22. Nb5 {[%emt 0:00:29]} Bf6 {[%emt 0:01:29]} 23. Rab1 {[%emt 0:01:37]} Rfc8 {[%emt 0:03:43]} 24. Bd2 {[%emt 0:05:04]} a6 {[%emt 0:00:32]} 25. Nc3 {[%emt 0:00:06]} Bxc3 {[%emt 0:04:45]} 26. Bxc3 {[%emt 0:00:10]} Nh6 {[%emt 0:00:22]} ({Black should try} 26... Re8 $14) 27. h3 {[%emt 0:00:16]} Kf7 {[%emt 0:00:10]} 28. Kf2 {[%emt 0:00:15]} Ng8 {[%emt 0:00:57]} 29. Rfe1 {[%emt 0:07:37]} Re8 {[%emt 0:00:12]} 30. b4 {[%emt 0:01:33]} Rxe1 {[%emt 0:01:59]} 31. Rxe1 {[%emt 0:01:10]} Rc8 {[%emt 0:01:44]} 32. b5 {[%emt 0:01:26]} axb5 {[%emt 0:02:09]} 33. cxb5 $2 {[%emt 0:00:05]} (33. Re6 $1 $11 {and White has nothing to worry.}) 33... Ra8 $2 {[%emt 0:00:08]} (33... Ne7 $19 34. Bb2 Nxd5) 34. Bb2 {[%emt 0:00:57] [#]} (34. Re6 $1 $11 {was the only way to keep the balance.}) 34... Ra5 $1 {[%emt 0:00:10]} 35. Re6 {[%emt 0:00:33]} Rxb5 {[%emt 0:00:07]} 36. Bc3 {[%emt 0:00:37]} Rb3 {[%emt 0:00:59]} 37. Bh8 {[%emt 0:00:24]} Rb6 {[%emt 0:01:01]} 38. Be5 {[%emt 0:00:16]} Ne7 {[%emt 0:00:37]} 39. Rf6+ {[%emt 0:00:37] [#]} Ke8 {[%emt 0:00:06]} (39... Kg8 $1 $17 40. Rxd6 Rxd6 41. Bxd6 Nxd5 42. Bxc5 Nxf4) 40. Rxd6 $2 {[%emt 0:00:43]} (40. Bxd6 $11 Nxd5 41. Rf8+ Kd7 42. Bxc5 Rb2+ 43. Kg3) 40... Rxd6 {[%emt 0:00:16]} 41. Bxd6 {[%emt 0:30:07]} Nxd5 $2 {[%emt 0:02:49]} (41... b6 $19 {has better winning chances.} 42. Ke3 Nxd5+ 43. Kd2 Kd7) 42. Bxc5 {[%emt 0:00:00]} Nxf4 {[%emt 0:01:54]} 43. Kg3 {[%emt 0:00:00]} Ne6 {[%emt 0:03:24]} 44. Be3 {[%emt 0:00:00]} Kf7 {[%emt 0:00:37]} 45. Bd2 {[%emt 0:00:00]} Kf6 {[%emt 0:01:49]} 46. Kf3 {[%emt 0:00:00]} Ng5+ {[%emt 0:07:48]} 47. Kg2 {[%emt 0:00:00]} Ne4 {[%emt 0:00:04]} 48. Bf4 {[%emt 0:00:00]} Ke6 {[%emt 0:01:45]} 49. a4 {[%emt 0:00:00]} Nc3 {[%emt 0:01:17]} 50. a5 {[%emt 0:00:00]} Nd5 {[%emt 0:00:08]} 51. Bd2 {[%emt 0:00:00]} Ke5 {[%emt 0:02:32]} 52. Kf3 {[%emt 0:00:00]} f4 {[%emt 0:07:29]} 53. Bc1 {[%emt 0:00:00]} Kf5 {[%emt 0:00:24]} 54. h4 {[%emt 0:00:00]} Ne3 {[%emt 0:04:13]} 55. Bxe3 {[%emt 0:01:45]} fxe3 {[%emt 0:00:05]} 56. Kxe3 {[%emt 0:00:06]} Ke5 {[%emt 0:00:08]} 57. Kf3 {[%emt 0:01:01]} Kf5 {[%emt 0:00:46]} 58. Kg3 {[%emt 0:03:14]} h6 {[%emt 0:00:21]} 59. Kf3 {[%emt 0:01:16]} h5 {[%emt 0:00:48]} 60. Ke3 {[%emt 0:00:36]} Ke5 {[%emt 0:00:28]} 61. Kf3 {[%emt 0:00:49]} Kf5 {[%emt 0:00:45]} 62. Ke3 {[%emt 0:00:05]} Ke5 $11 {[%emt 0:00:27]} 1/2-1/2

[Event "GER-ch Women 2020"]
[Site "Magdeburg"]
[Date "2020.08.20"]
[Round "7.10"]
[White "Von Herman, Brigitte"]
[Black "Hielscher, Ursula"]
[Result "1-0"]
[ECO "C15"]
[WhiteElo "2085"]
[BlackElo "1789"]
[Annotator "NA"]
[PlyCount "65"]
[EventDate "2020.08.16"]
[EventType "swiss"]
[EventCountry "GER"]
[SourceTitle "playchess.com"]
[Source "ChessBase"]
[SourceQuality "1"]
[TimeControl "40/5400+30:1800+30"]

1. e4 {[%emt 0:00:00]} e6 {[%emt 0:00:00]} 2. d4 {[%emt 0:00:00]} d5 {[%emt 0:00:00]} 3. Nc3 {[%emt 0:00:00]} Bb4 {[%emt 0:00:00]} 4. exd5 {[%emt 0:00:22]} exd5 {[%emt 0:00:00]} 5. Bd3 {[%emt 0:00:13]} Nc6 {[%emt 0:01:05]} 6. a3 {[%emt 0:00:16]} Bxc3+ {[%emt 0:00:09]} 7. bxc3 {[%emt 0:00:08]} Nge7 {[%emt 0:00:35]} 8. Qf3 {[%emt 0:00:46]} Be6 {[%emt 0:00:35]} 9. Ne2 {[%emt 0:01:47]} Qd7 {[%emt 0:00:45]} 10. O-O {[%emt 0:07:53]} O-O-O {[%emt 0:00:54]} 11. Nf4 {[%emt 0:05:48]} Bg4 {[%emt 0:04:09]} 12. Qg3 {[%emt 0:03:48]} g6 {[%emt 0:00:58]} 13. h3 {[%emt 0:02:44]} Bf5 {[%emt 0:01:45]} 14. Re1 {[%emt 0:05:19]} Bxd3 {[%emt 0:05:40]} 15. cxd3 {[%emt 0:01:17]} h5 {[%emt 0:03:19]} 16. a4 $17 {[%emt 0:04:38]} (16. Rb1 $11 {keeps the balance.}) 16... Rdg8 {[%emt 0:06:39]} 17. Qg5 {[%emt 0:07:38]} f6 {[%emt 0:12:38]} 18. Qxf6 {[%emt 0:05:50]} Rf8 {[%emt 0:00:17]} 19. Qe6 {[%emt 0:01:08]} g5 {[%emt 0:06:23]} 20. Qxd7+ {[%emt 0:00:43]} Kxd7 {[%emt 0:00:06]} 21. Ne6 {[%emt 0:03:16]} Rf6 {[%emt 0:03:39]} 22. Nxg5 {[%emt 0:01:28]} Rg8 {[%emt 0:01:40]} 23. Ra2 {[%emt 0:03:45]} Rfg6 {[%emt 0:07:50]} 24. h4 {[%emt 0:03:45]} Nf5 {[%emt 0:05:51]} 25. g3 {[%emt 0:00:39]} Nd8 {[%emt 0:00:34]} 26. Re5 {[%emt 0:03:58]} Nd6 {[%emt 0:02:48]} 27. Rxd5 {[%emt 0:01:50]} Re8 {[%emt 0:02:31]} 28. Re5 {[%emt 0:04:11]} Nc6 {[%emt 0:01:12]} 29. Rxe8 {[%emt 0:00:46]} Nxe8 {[%emt 0:00:18]} 30. Be3 {[%emt 0:02:17]} Na5 {[%emt 0:02:14]} 31. Kg2 {[%emt 0:07:07]} Nf6 {[%emt 0:04:26]} 32. Nf3 {[%emt 0:01:45]} Nd5 {[%emt 0:02:18]} 33. Ne5+ {[%emt 0:00:12]} 1-0

[Event "GER-ch Women 2020"]
[Site "Magdeburg"]
[Date "2020.08.21"]
[Round "8.8"]
[White "Heutling, Elina"]
[Black "Dietrich, Mareike"]
[Result "1/2-1/2"]
[ECO "B90"]
[WhiteElo "1833"]
[BlackElo "1699"]
[Annotator "NA RC"]
[PlyCount "79"]
[EventDate "2020.08.16"]
[EventType "swiss"]
[EventCountry "GER"]
[SourceTitle "playchess.com"]
[Source "ChessBase"]
[SourceQuality "1"]
[TimeControl "40/5400+30:1800+30"]

1. e4 {[%emt 0:00:00]} c5 {[%emt 0:00:00]} 2. Nf3 {[%emt 0:00:00]} d6 {[%emt 0:00:00]} 3. d4 {[%emt 0:00:00]} cxd4 {[%emt 0:00:00]} 4. Nxd4 {[%emt 0:00:00]} Nf6 {[%emt 0:00:00]} 5. Nc3 {[%emt 0:00:04]} a6 {[%emt 0:00:00]} 6. Be3 {[%emt 0:00:32]} e6 {[%emt 0:00:00]} 7. Bd3 {[%emt 0:06:10]} b5 {[%emt 0:00:41]} 8. f4 {[%emt 0:02:29]} b4 {[%emt 0:03:35] B82: Sicilian Scheveningen: 6 f4.} 9. Nb1 {[%emt 0:03:50] [#]} Qc7 $146 {[%emt 0:02:43]} ({Predecessor:} 9... Bb7 10. Qf3 Nbd7 11. Nd2 e5 12. Nf5 g6 13. Ng3 Bg7 14. Nc4 Qc7 15. O-O O-O 16. fxe5 dxe5 {½-½ (66) Derakhshani,D (2356)-Bok,B (2591) St Petersburg 2015}) 10. Qf3 {[%emt 0:05:16]} Bb7 {[%emt 0:03:42]} 11. Nd2 {[%emt 0:04:04]} Nbd7 {[%emt 0:06:34]} 12. O-O {[%emt 0:06:13]} h5 {[%emt 0:04:04]} 13. h3 {[%emt 0:05:19]} Nc5 {[%emt 0:02:15]} 14. g4 $2 {[%emt 0:10:38]} (14. a3 $14) 14... hxg4 {[%emt 0:07:15]} 15. hxg4 {[%emt 0:00:05]} Rh4 {[%emt 0:01:20]} 16. g5 {[%emt 0:02:22]} Ng4 {[%emt 0:05:44]} ({Of course not} 16... Nxd3 $6 17. cxd3 Ng4 18. Rfc1 $16) 17. Qg3 {[%emt 0:03:16]} Nxe3 {[%emt 0:01:33]} 18. Qxe3 {[%emt 0:01:24]} d5 {[%emt 0:06:37]} ({Black should try} 18... O-O-O 19. Qg3 Rh8) 19. e5 $1 {[%emt 0:06:22]} Nxd3 {[%emt 0:03:02]} 20. cxd3 {[%emt 0:01:32]} Qb6 {[%emt 0:02:24]} 21. Kg2 {[%emt 0:04:27]} Be7 {[%emt 0:06:09] [#]} 22. Rac1 {[%emt 0:08:31]} (22. N2f3 $1 $16 {[%cal Rf3h4]} Rh8 23. Rh1) 22... Bxg5 $2 {[%emt 0:06:24]} (22... g6 $11 {and Black has nothing to worry.}) 23. fxg5 {[%emt 0:10:03]} Qxd4 {[%emt 0:01:47]} 24. Qxd4 {[%emt 0:02:46]} Rxd4 {[%emt 0:00:01]} 25. Rc7 {[%emt 0:03:07]} Rxd3 {[%emt 0:03:25]} 26. Rh1 {[%emt 0:01:24]} d4+ {[%emt 0:03:22]} 27. Rxb7 {[%emt 0:00:06]} Rxd2+ {[%emt 0:00:05]} 28. Kf3 {[%emt 0:00:32]} O-O-O {[%emt 0:00:08]} 29. Rxb4 {[%emt 0:08:48]} Rc2 {[%emt 0:02:48]} 30. Rd1 {[%emt 0:02:35]} d3 {[%emt 0:02:27]} 31. Rb3 {[%emt 0:00:38]} d2 {[%emt 0:02:34]} 32. Rc3+ $19 {[%emt 0:01:16]} (32. g6 $17 {was called for.}) 32... Rxc3+ {[%emt 0:00:11]} 33. bxc3 {[%emt 0:00:01]} Rd3+ {[%emt 0:00:08]} 34. Ke4 {[%emt 0:00:59]} Rxc3 {[%emt 0:00:05]} 35. Rxd2 {[%emt 0:00:07]} Rc5 {[%emt 0:02:08]} 36. Rf2 {[%emt 0:01:24]} Rc7 {[%emt 0:00:44]} 37. Rb2 {[%emt 0:00:57]} Rc4+ {[%emt 0:02:19]} 38. Kf3 {[%emt 0:00:20]} Rc3+ {[%emt 0:00:17]} 39. Kf4 {[%emt 0:00:21]} Rc4+ {[%emt 0:00:08]} 40. Kf3 1/2-1/2

[Event "GER-ch Women 2020"]
[Site "Magdeburg"]
[Date "2020.08.21"]
[Round "8.11"]
[White "Roos, Karin"]
[Black "Schumann, Rabea"]
[Result "1/2-1/2"]
[ECO "B30"]
[WhiteElo "1772"]
[BlackElo "1871"]
[Annotator "NA RC"]
[PlyCount "74"]
[EventDate "2020.08.16"]
[EventType "swiss"]
[EventCountry "GER"]
[SourceTitle "playchess.com"]
[Source "ChessBase"]
[SourceQuality "1"]
[TimeControl "40/5400+30:1800+30"]

1. e4 {[%emt 0:00:00]} c5 {[%emt 0:00:00]} 2. Nf3 {[%emt 0:00:00]} Nc6 {[%emt 0:00:00]} 3. c3 {[%emt 0:00:00]} Nf6 {[%emt 0:00:00]} 4. d3 {[%emt 0:09:44]} d6 {[%emt 0:03:53]} 5. Be2 {[%emt 0:00:53]} g6 {[%emt 0:00:41]} 6. Nbd2 {[%emt 0:01:27]} Bg7 {[%emt 0:02:45]} 7. O-O {[%emt 0:04:40]} O-O {[%emt 0:01:20]} 8. Nc4 {[%emt 0:00:17] B50: Sicilian: 2...d6, Miscellaneous.} b5 {[%emt 0:04:22]} 9. Ne3 {[%emt 0:02:05]} Rb8 {[%emt 0:05:29]} 10. h3 {[%emt 0:03:05] [#]} b4 $146 {[%emt 0:03:43]} ({Predecessor:} 10... a5 11. Rb1 Be6 12. b3 Qc7 13. Bb2 Rfd8 14. c4 bxc4 15. bxc4 Nh5 16. Bxg7 Nxg7 {1-0 (79) Barilla,T (1982)-Butala,S (1855) Slovakia 2016}) 11. Bd2 {[%emt 0:01:41]} a5 {[%emt 0:04:48]} 12. Nd5 {[%emt 0:08:37]} Ba6 {[%emt 0:08:03]} 13. Re1 {[%emt 0:05:50]} e6 {[%emt 0:13:32]} 14. Nxf6+ {[%emt 0:01:51]} Bxf6 {[%emt 0:00:29]} 15. Qc1 {[%emt 0:01:46]} Qd7 {[%emt 0:12:58]} 16. Bf1 {[%emt 0:19:28]} Rb6 {[%emt 0:04:19]} 17. Rd1 {[%emt 0:00:42]} Rfb8 {[%emt 0:05:18]} 18. Bg5 {[%emt 0:10:17]} Bxg5 {[%emt 0:07:55]} 19. Qxg5 {[%emt 0:00:43]} bxc3 {[%emt 0:01:41]} 20. bxc3 {[%emt 0:00:23]} Qe7 {[%emt 0:02:42]} 21. Qe3 {[%emt 0:05:29]} Qf6 {[%emt 0:07:39]} 22. d4 {[%emt 0:04:10]} cxd4 {[%emt 0:00:16]} 23. cxd4 {[%emt 0:00:56]} Bxf1 {[%emt 0:00:31]} 24. Kxf1 {[%emt 0:00:19]} Nb4 {[%emt 0:02:45]} 25. e5 {[%emt 0:02:07]} Qe7 {[%emt 0:03:47]} 26. Rdc1 {[%emt 0:02:04]} Nd5 {[%emt 0:00:43]} 27. Qd2 {[%emt 0:01:16]} a4 {[%emt 0:02:37]} 28. exd6 {[%emt 0:02:16]} Qxd6 {[%emt 0:00:10]} 29. Ne5 {[%emt 0:00:44]} Rb5 {[%emt 0:01:05]} 30. g3 {[%emt 0:04:01]} f6 {[%emt 0:00:41]} 31. Nc4 {[%emt 0:04:32]} (31. Rc6 $5 {[%cal Rc6d6]} Qb4 32. Nc4 $15) 31... Qb4 {[%emt 0:00:20]} 32. Qxb4 {[%emt 0:00:31]} Rxb4 {[%emt 0:00:12]} 33. Ke2 {[%emt 0:01:25]} Rc8 {[%emt 0:01:05]} 34. Kd3 {[%emt 0:00:28]} Kg7 {[%emt 0:00:25]} 35. Rab1 {[%emt 0:00:24] [#]} Rcb8 $15 {[%emt 0:00:26]} (35... Rcxc4 $1 $19 {[%mdl 512]} 36. Rxc4 Rxb1 37. Rxa4 Rd1+ 38. Kc2 Rf1 39. Ra7+ Kh6) 36. Ra1 {[%emt 0:00:35]} Rc8 {[%emt 0:00:20]} 37. Rab1 Rcb8 1/2-1/2

[Event "GER-ch Women 2020"]
[Site "Magdeburg"]
[Date "2020.08.22"]
[Round "9.8"]
[White "Dietrich, Mareike"]
[Black "Brunner, Sophia"]
[Result "1/2-1/2"]
[ECO "B01"]
[WhiteElo "1699"]
[BlackElo "1881"]
[Annotator "NA RC"]
[PlyCount "58"]
[EventDate "2020.08.16"]
[EventType "swiss"]
[EventCountry "GER"]
[SourceTitle "playchess.com"]
[Source "ChessBase"]
[SourceQuality "1"]
[TimeControl "40/5400+30:1800+30"]

1. e4 {[%emt 0:00:00]} d5 {[%emt 0:00:00]} 2. exd5 {[%emt 0:00:00]} Qxd5 {[%emt 0:00:00]} 3. Nc3 {[%emt 0:00:00]} Qa5 {[%emt 0:00:02]} 4. d4 {[%emt 0:00:00]} Nf6 {[%emt 0:00:19]} 5. Nf3 {[%emt 0:00:00]} c6 {[%emt 0:03:33]} 6. Bc4 {[%emt 0:00:00]} Bg4 {[%emt 0:04:47]} 7. h3 {[%emt 0:00:05]} Bxf3 {[%emt 0:03:50]} 8. Qxf3 {[%emt 0:00:19]} e6 {[%emt 0:00:34]} 9. Bd2 {[%emt 0:03:01]} Qc7 {[%emt 0:01:37]} 10. O-O-O {[%emt 0:03:26]} Nbd7 {[%emt 0:01:13]} 11. Rhe1 {[%emt 0:01:54]} O-O-O {[%emt 0:00:38]} 12. g4 {[%emt 0:03:53]} Nb6 {[%emt 0:03:39]} 13. Bf4 {[%emt 0:04:18]} Bd6 {[%emt 0:01:10]} 14. Bxd6 {[%emt 0:01:02]} Rxd6 {[%emt 0:04:06]} 15. g5 {[%emt 0:03:36]} Nxc4 {[%emt 0:07:33]} 16. gxf6 {[%emt 0:00:12]} g6 {[%emt 0:00:12]} 17. Ne4 {[%emt 0:02:59]} Rd5 {[%emt 0:08:52]} 18. Rd3 {[%emt 0:02:16]} Qa5 $19 {[%emt 0:06:54]} 19. Nc3 {[%emt 0:18:22]} Rb5 {[%emt 0:24:18]} 20. Nxb5 {[%emt 0:04:56]} Qxe1+ {[%emt 0:01:09]} 21. Rd1 {[%emt 0:00:02]} Qb4 {[%emt 0:01:17]} 22. b3 {[%emt 0:05:14]} Qxb5 {[%emt 0:00:34]} 23. bxc4 {[%emt 0:00:35]} Qxc4 {[%emt 0:03:34]} 24. Qa3 {[%emt 0:00:38]} Qd5 {[%emt 0:01:54]} 25. Qxa7 {[%emt 0:01:28]} Qg5+ {[%emt 0:02:34]} 26. Kb1 {[%emt 0:02:06]} Qxf6 {[%emt 0:03:16]} 27. Qa8+ {[%emt 0:00:32]} Kc7 {[%emt 0:00:07]} 28. Qa5+ {[%emt 0:00:10]} Kb8 {[%emt 0:00:57]} 29. Rd3 {[%emt 0:04:14]} Qf5 1/2-1/2